lending/lending_fUSD_20240316
["ID","MTS","AMOUNT","RATE_DAILY","PERIOD"]
[319272879,1710631883865,-680.50974901,0.00015499,2]
[319272880,1710631883874,-1758.87,0.00015499,2]
[319272881,1710631883883,-1758.87,0.00015499,2]
[319272882,1710631883893,-1758.87,0.00015499,2]
[319272883,1710631883902,-1758.87,0.00015499,2]
[319272884,1710631883911,-1758.87,0.00015499,2]
[319272885,1710631883921,-1759.08654811,0.00015499,2]
[319272886,1710631883931,-631.42,0.00015499,2]
[319272887,1710631883940,-631.42,0.00015499,2]
[319272888,1710631883954,-631.42,0.00015499,2]
[319272889,1710631883963,-631.42,0.00015499,2]
[319272890,1710631883972,-631.42,0.00015499,2]
[319272891,1710631883981,-631.42,0.00015499,2]
[319272892,1710631883990,-631.42,0.00015499,2]
[319272893,1710631884000,-631.42,0.00015499,2]
[319272894,1710631884009,-631.48227944,0.00015499,2]
[319272895,1710631884018,-500.0,0.00015499,2]
[319272896,1710631884028,-500.0,0.00015499,2]
[319272897,1710631884037,-500.0,0.00015499,2]
[319272898,1710631884046,-500.0,0.00015499,2]
[319272899,1710631884055,-500.0,0.00015499,2]
[319272900,1710631884064,-538.0,0.00015499,2]
[319272901,1710631884073,-863.87,0.00015499,2]
[319272902,1710631884082,-863.87,0.00015499,2]
[319272903,1710631884091,-863.87,0.00015499,2]
[319272904,1710631884100,-863.87,0.00015499,2]
[319272905,1710631884110,-863.87,0.00015499,2]
[319272906,1710631884119,-864.09,0.00015499,2]
[319272907,1710631884128,-500.0,0.00015499,2]
[319272908,1710631884137,-500.0,0.00015499,2]
[319272909,1710631884147,-500.0,0.00015499,2]
[319272910,1710631884156,-500.0,0.00015499,2]
[319272911,1710631884165,-500.0,0.00015499,2]
[319272912,1710631884174,-500.0,0.00015499,2]
[319272913,1710631884184,-500.0,0.00015499,2]
[319272914,1710631884197,-525.4,0.00015499,2]
[319272915,1710631884206,-551.69,0.00015499,2]
[319272916,1710631884215,-500.0,0.00015499,2]
[319272917,1710631884224,-551.69,0.00015499,2]
[319272918,1710631884234,-500.0,0.00015499,2]
[319272919,1710631884244,-551.69,0.00015499,2]
[319272920,1710631884253,-500.0,0.00015499,2]
[319272921,1710631884263,-551.69,0.00015499,2]
[319272922,1710631884272,-500.0,0.00015499,2]
[319272923,1710631884282,-551.69,0.00015499,2]
[319272924,1710631884291,-500.0,0.00015499,2]
[319272925,1710631884300,-500.0,0.00015499,2]
[319272926,1710631884310,-551.69,0.00015499,2]
[319272927,1710631884319,-500.0,0.00015499,2]
[319272928,1710631884328,-551.69,0.00015499,2]
[319272929,1710631884337,-500.0,0.00015499,2]
[319272930,1710631884346,-551.69,0.00015499,2]
[319272931,1710631884355,-551.76,0.00015499,2]
[319272932,1710631884365,-267.07,0.00015499,2]
[319272933,1710631884374,-480.06951503,0.00015499,2]
[319272934,1710631884383,-1024.34,0.00015499,2]
[319272935,1710631884392,-1024.34,0.00015499,2]
[319272936,1710631884401,-1024.34,0.00015499,2]
[319272937,1710631884409,-1024.34,0.00015499,2]
[319272938,1710631884418,-1024.34,0.00015499,2]
[319272939,1710631884427,-1024.34,0.00015499,2]
[319272940,1710631884437,-1024.34,0.00015499,2]
[319272941,1710631884448,-1024.34,0.00015499,2]
[319272942,1710631884457,-1024.40267026,0.00015499,2]
[319272943,1710631884467,-500.0,0.00015499,2]
[319272944,1710631884476,-500.0,0.00015499,2]
[319272945,1710631884486,-500.0,0.00015499,2]
[319272946,1710631884495,-500.0,0.00015499,2]
[319272947,1710631884505,-500.0,0.00015499,2]
[319272948,1710631884514,-500.0,0.00015499,2]
[319272949,1710631884523,-500.0,0.00015499,2]
[319272950,1710631884532,-500.0,0.00015499,2]
[319272951,1710631884541,-291.96,0.00015499,2]
[319272952,1710631884550,-1077.53,0.00015499,2]
[319272953,1710631884559,-1077.53,0.00015499,2]
[319272954,1710631884568,-1077.53,0.00015499,2]
[319272955,1710631884577,-1077.53,0.00015499,2]
[319272956,1710631884586,-1077.53,0.00015499,2]
[319272957,1710631884595,-1077.68,0.00015499,2]
[319272958,1710631884604,-607.00063676,0.00015499,2]
[319272959,1710631884614,-867.96,0.00015499,2]
[319272960,1710631884623,-867.96,0.00015499,2]
[319272961,1710631884632,-867.96,0.00015499,2]
[319272962,1710631884641,-867.96,0.00015499,2]
[319272963,1710631884650,-867.96,0.00015499,2]
[319272964,1710631884660,-868.0204756,0.00015499,2]
[319272965,1710631884668,-1027.61,0.00015499,2]
[319272966,1710631884678,-1027.61,0.00015499,2]
[319272967,1710631884687,-1027.61,0.00015499,2]
[319272968,1710631884699,-1027.61,0.00015499,2]
[319272969,1710631884708,-1027.61,0.00015499,2]
[319272970,1710631884717,-1027.61,0.00015499,2]
[319272971,1710631884726,-1027.61,0.00015499,2]
[319272972,1710631884735,-1027.61,0.00015499,2]
[319272973,1710631884745,-1027.81762823,0.00015499,2]
[319272974,1710631884754,-390.57,0.00015499,2]
[319272975,1710631884764,-390.57,0.00015499,2]
[319272976,1710631884773,-390.57,0.00015499,2]
[319272977,1710631884782,-390.57,0.00015499,2]
[319272978,1710631884791,-390.57,0.00015499,2]
[319272979,1710631884801,-390.72728152,0.00015499,2]
[319272980,1710631884810,-500.0,0.00015499,2]
[319272981,1710631884819,-500.0,0.00015499,2]
[319272982,1710631884828,-1000.0,0.00015499,2]
[319272983,1710631884837,-858.67,0.00015499,2]
[319272984,1710631884846,-858.67,0.00015499,2]
[319272985,1710631884855,-858.67,0.00015499,2]
[319272986,1710631884864,-858.67,0.00015499,2]
[319272987,1710631884874,-858.67,0.00015499,2]
[319272988,1710631884883,-858.86139113,0.00015499,2]
[319272989,1710631884892,-807.73,0.00015499,2]
[319272990,1710631884901,-807.73,0.00015499,2]
[319272991,1710631884910,-807.73,0.00015499,2]
[319272992,1710631884919,-807.73,0.00015499,2]
[319272993,1710631884929,-807.73,0.00015499,2]
[319272994,1710631884938,-807.73,0.00015499,2]
[319272995,1710631884948,-807.73,0.00015499,2]
[319272996,1710631884958,-807.73,0.00015499,2]
[319272997,1710631884967,-807.73,0.00015499,2]
[319272998,1710631884976,-1451.89,0.00015499,2]
[319272999,1710631884986,-1451.89,0.00015499,2]
[319273000,1710631884995,-1451.89,0.00015499,2]
[319273001,1710631885005,-1451.89,0.00015499,2]
[319273002,1710631885015,-1451.89,0.00015499,2]
[319273003,1710631885025,-1451.89705474,0.00015499,2]
[319273004,1710631885034,-500.0,0.00015499,2]
[319273005,1710631885044,-191.33,0.00015499,2]
[319273006,1710631885054,-579.34,0.00015499,2]
[319273007,1710631885064,-579.34,0.00015499,2]
[319273008,1710631885073,-579.34,0.00015499,2]
[319273009,1710631885082,-579.34,0.00015499,2]
[319273010,1710631885092,-579.34,0.00015499,2]
[319273011,1710631885102,-579.50363263,0.00015499,2]
[319273012,1710631885111,-615.62,0.00015499,2]
[319273013,1710631885120,-615.62,0.00015499,2]
[319273014,1710631885130,-615.62,0.00015499,2]
[319273015,1710631885140,-615.62,0.00015499,2]
[319273016,1710631885149,-615.62,0.00015499,2]
[319273017,1710631885158,-615.79,0.00015499,2]
[319273018,1710631885167,-1013.63,0.00015499,2]
[319273019,1710631885177,-1013.63,0.00015499,2]
[319273020,1710631885191,-1013.63,0.00015499,2]
[319273021,1710631885202,-1013.63,0.00015499,2]
[319273022,1710631885211,-1013.63,0.00015499,2]
[319273023,1710631885221,-1013.63,0.00015499,2]
[319273024,1710631885230,-1013.63,0.00015499,2]
[319273025,1710631885240,-1013.63,0.00015499,2]
[319273026,1710631885249,-1013.76295297,0.00015499,2]
[319273027,1710631885259,-453.19300824,0.00015499,2]
[319273028,1710631885270,-739.74,0.00015499,2]
[319273029,1710631885280,-739.74,0.00015499,2]
[319273030,1710631885289,-739.74,0.00015499,2]
[319273031,1710631885298,-739.74,0.00015499,2]
[319273032,1710631885308,-739.74,0.00015499,2]
[319273033,1710631885317,-739.91,0.00015499,2]
[319273034,1710631885326,-500.0,0.00015499,2]
[319273035,1710631885335,-500.0,0.00015499,2]
[319273036,1710631885345,-290.33,0.00015499,2]
[319273037,1710631885354,-582.39,0.00015499,2]
[319273038,1710631885363,-582.39,0.00015499,2]
[319273039,1710631885372,-582.39,0.00015499,2]
[319273040,1710631885381,-582.39,0.00015499,2]
[319273041,1710631885391,-582.39,0.00015499,2]
[319273042,1710631885400,-423.11048822,0.00015499,2]
[319273043,1710631885441,500.0,0.00011691,2]
[319273044,1710631885456,-159.33951178,0.00015499,2]
[319273045,1710631885465,-482.59599337,0.00015499,2]
[319273046,1710631885477,-1118.42400663,0.00015499,2]
[319273047,1710631885486,-223.39119322,0.00015499,2]
[319273048,1710631885497,-1377.62880678,0.00015499,2]
[319273049,1710631885506,-1601.02,0.00015499,2]
[319273050,1710631885515,-1601.02,0.00015499,2]
[319273051,1710631885525,-268.77867939,0.00015499,2]
[319273052,1710631885536,-1332.24132061,0.00015499,2]
[319273053,1710631885546,-66.10110471,0.00015499,2]
[319273054,1710631885557,-1535.09134325,0.00015499,2]
[319273055,1710631885566,-500.0,0.00015499,2]
[319273056,1710631885576,-500.0,0.00015499,2]
[319273057,1710631885585,-500.0,0.00015499,2]
[319273058,1710631885594,-500.0,0.00015499,2]
[319273059,1710631885603,-500.0,0.00015499,2]
[319273060,1710631885613,-312.26269471,0.00015499,2]
[319273061,1710631885622,-1148.17,0.00015499,2]
[319273062,1710631885631,-990.89766599,0.00015499,2]
[319273063,1710631885643,-157.27233401,0.00015499,2]
[319273064,1710631885652,-496.23789978,0.00015499,2]
[319273065,1710631885671,-702.78384429,0.00015496,2]
[319273066,1710631885682,-2685.35615571,0.00015496,2]
[319273067,1710631885691,-651.93210022,0.00015499,2]
[319273068,1710631885706,-1148.17,0.00015499,2]
[319273069,1710631885715,-1148.17,0.00015499,2]
[319273070,1710631885725,-1148.17,0.00015499,2]
[319273071,1710631885734,-500.0,0.00015499,2]
[319273072,1710631885744,-500.0,0.00015499,2]
[319273073,1710631885753,-500.0,0.00015499,2]
[319273074,1710631885762,-500.0,0.00015499,2]
[319273075,1710631885772,-500.0,0.00015499,2]
[319273076,1710631885781,-327.95,0.00015499,2]
[319273077,1710631885791,-144.90204407,0.00015499,2]
[319273078,1710631885811,-150.0,0.00014821,2]
[319273079,1710631885821,-956.50033054,0.00015499,2]
[319273080,1710631885834,-517.76762539,0.00015499,2]
[319273081,1710631885843,-1232.23237462,0.00015499,2]
[319273082,1710631885855,-386.93762538,0.00015499,2]
[319273083,1710631885864,-1240.58737462,0.00015499,2]
[319273084,1710631886747,403.36554612,0.00011691,2]
[319273085,1710631886883,276.9394975,0.0001169,2]
[319273086,1710631886994,3060.85523185,0.0001169,2]
[319273087,1710631888966,155.0,0.00011689,2]
[319273088,1710631889130,500.0,0.00011689,2]
[319273089,1710631966659,-373.8809731,0.00012316,2]
[319273090,1710631966683,-155.0,0.00012317,2]
[319273091,1710631966706,-1235.12692231,0.00012317,2]
[319273092,1710631966729,-1616.62187975,0.00012318,2]
[319273093,1710631966756,-682.66,0.00012318,2]
[319273094,1710631966778,-186.71022484,0.00014169,2]
[319273095,1710632054726,-155.0,0.00012315,2]
[319273096,1710632054755,-451.10430523,0.00013899,2]
[319273097,1710632054785,-200.0,0.000139,5]
[319273098,1710632054818,-322.0,0.00013999,2]
[319273099,1710632054836,-155.0,0.00014,5]
[319273100,1710632054848,-345.0,0.00014,5]
[319273101,1710632054857,-106.10430523,0.00014023,2]
[319273102,1710632054868,-200.0,0.00014023,2]
[319273103,1710632054887,-193.89569477,0.00014023,2]
[319273104,1710632054897,-128.10430523,0.00014037,2]
[319273105,1710632054915,-143.79138954,0.00014037,2]
[319273107,1710632370863,722.39,0.00011658,2]
[319273108,1710632863974,752.75,0.00011229,2]
[319273113,1710633002432,150.0,0.00011229,2]
[319273114,1710633002898,150.0,0.00011229,2]
[319273115,1710633003132,150.0,0.00011229,2]
[319273116,1710633003351,150.0,0.00011229,2]
[319273117,1710633003541,150.0,0.00011229,2]
[319273118,1710633003724,150.0,0.00011229,2]
[319273119,1710633003928,150.0,0.00011229,2]
[319273120,1710633004141,150.0,0.00011229,2]
[319273121,1710633004328,150.0,0.00011229,2]
[319273122,1710633004523,150.0,0.00011229,2]
[319273123,1710633004712,150.0,0.00011229,2]
[319273124,1710633004911,150.0,0.00011229,2]
[319273125,1710633005089,150.0,0.00011229,2]
[319273126,1710633005264,150.0,0.00011229,2]
[319273127,1710633005493,150.0,0.00011229,2]
[319273128,1710633005631,150.0,0.00011229,2]
[319273129,1710633005828,150.0,0.00011229,2]
[319273130,1710633006449,245.175564,0.00011229,2]
[319273165,1710633031694,-176.39,0.00012978,2]
[319273166,1710633031705,-155.0,0.00013,2]
[319273167,1710633031714,-7701.22250689,0.00013,2]
[319273168,1710633031726,-684.71908266,0.00013,2]
[319273169,1710633031821,-1075.93569477,0.00013,2]
[319273170,1710633031832,-450.0,0.00013,2]
[319273171,1710633031846,-286.25173273,0.00013,2]
[319273172,1710633031857,-3316.64677374,0.00013,2]
[319273173,1710633031872,-9663.73369898,0.00013,2]
[319273174,1710633031881,-373.8809731,0.00013,2]
[319273175,1710633031891,-22792.38532792,0.00013001,2]
[319273176,1710633031926,-307.29035117,0.00013001,2]
[319273226,1710633037793,-668.46541002,0.00013001,2]
[319273227,1710633037806,-131.85891089,0.00013001,2]
[319273228,1710633037815,-1585.29900268,0.00013004,2]
[319273229,1710633037824,-250.0,0.00013005,2]
[319273230,1710633037834,-3357.84626022,0.0001303,2]
[319273231,1710633037844,-753.73,0.00013031,2]
[319273232,1710633037853,-200.0,0.00013047,2]
[319273233,1710633037863,-155.0,0.00013088,2]
[319273234,1710633037872,-409.72680051,0.00013088,2]
[319273235,1710633037881,-234.91084827,0.00013088,2]
[319273236,1710633038106,-1842.66,0.00013089,2]
[319273237,1710633038115,-299.99,0.00013089,2]
[319273238,1710633038125,-451.10430523,0.00013112,2]
[319273239,1710633038134,-150.99,0.00013113,2]
[319273240,1710633038144,-499.99,0.00013113,2]
[319273241,1710633038153,-196.53,0.00013118,2]
[319273242,1710633038162,-927.13,0.00013124,2]
[319273243,1710633038171,-3000.8511,0.00013127,2]
[319273244,1710633038180,-25345.43583137,0.0001313,2]
[319273255,1710633038466,-467.71965302,0.0001313,2]
[319273256,1710633038478,-1745.55646344,0.0001313,2]
[319273257,1710633038493,-1287.48825632,0.0001313,2]
[319273258,1710633038512,-14675.73979585,0.0001313,2]
[319273259,1710633038522,-150.0,0.00013146,2]
[319273260,1710633038531,-3324.26020415,0.00013147,2]
[319273261,1710633038542,-347.730252,0.00013147,2]
[319273262,1710633038554,-3509.50954385,0.00013147,2]
[319273263,1710633038564,-298.10502247,0.00013158,2]
[319273264,1710633038577,-1643.75497753,0.00013158,2]
[319273265,1710633038586,-592.11912034,0.00013171,2]
[319273266,1710633038603,-289.30814126,0.00013171,2]
[319273267,1710633038615,-1172.96859621,0.00013171,2]
[319273268,1710633038624,-261.09168084,0.00013171,2]
[319273269,1710633038645,-81.98831916,0.00013171,2]
[319273270,1710633038654,-627.35417631,0.00013176,2]
[319273271,1710633038666,-723.348404,0.00013176,2]
[319273272,1710633038678,-1425.94447234,0.00013176,2]
[319273273,1710633038716,-519.36294735,0.00013176,2]
[319273274,1710633038726,-964.37,0.00013177,2]
[319273275,1710633038736,-150.99,0.00013177,2]
[319273276,1710633038745,-150.0,0.00013231,2]
[319273277,1710633038755,-601.3,0.00013231,2]
[319273278,1710633038764,-150.0,0.00013233,2]
[319273279,1710633038774,-399.3,0.00013247,2]
[319273280,1710633038784,-259.90963548,0.0001325,2]
[319273281,1710633038795,-275.96458678,0.0001325,2]
[319273282,1710633038816,-141.17577774,0.0001325,2]
[319273283,1710633038826,-505.80995178,0.00013256,2]
[319273284,1710633038835,-814.88,0.00013298,2]
[319273285,1710633038847,-246.27,0.000133,2]
[319273286,1710633038856,-172.11931496,0.00013372,2]
[319273287,1710633038866,-167.19144386,0.00013408,2]
[319273288,1710633038878,-335.30855614,0.00013408,2]
[319273289,1710633038887,-357.48616482,0.00013444,2]
[319273290,1710633038899,-145.01383518,0.00013444,2]
[319273291,1710633038908,-301.02,0.00013472,2]
[319273292,1710633038917,-23.60384603,0.00013481,2]
[319273293,1710633038929,-478.89615397,0.00013481,2]
[319273294,1710633038939,-741.31160509,0.00013481,2]
[319273295,1710633038950,-406.46916604,0.00013481,2]
[319273296,1710633038963,-369.93113102,0.00013481,2]
[319273297,1710633039032,-2598.96509485,0.00013481,2]
[319273298,1710633039046,-720.133003,0.00013481,2]
[319273299,1710633039055,-752.75,0.00013493,2]
[319273300,1710633039064,-228.04,0.00013509,2]
[319273301,1710633039074,-199.076997,0.00013518,2]
[319273302,1710633039151,-780.1567085,0.00013,2]
[319273303,1710633039161,-303.423003,0.00013518,2]
[319273304,1710633039170,-168.27,0.0001355,2]
[319273305,1710633039179,-502.5,0.00013555,2]
[319273306,1710633039188,-200.0,0.00013562,2]
[319273307,1710633039197,-9585.73436004,0.00013587,2]
[319273308,1710633039206,-502.5,0.00013591,2]
[319273309,1710633039216,-502.5,0.00013628,2]
[319273310,1710633039225,-502.5,0.00013665,2]
[319273311,1710633039234,-244.43466488,0.00013699,2]
[319273312,1710633039244,-3101.32532854,0.00013699,2]
[319273313,1710633039267,-1898.67467146,0.00013699,2]
[319273314,1710633039277,-941.37,0.00013699,2]
[319273315,1710633039286,-250.0,0.00013699,2]
[319273316,1710633039295,-712.16,0.00013699,2]
[319273317,1710633039304,-500.0,0.00013699,2]
[319273318,1710633039313,-200.0,0.00013699,2]
[319273319,1710633039322,-500.0,0.00013699,2]
[319273320,1710633039331,-502.5,0.00013702,2]
[319273321,1710633039343,-172.11931491,0.00013738,2]
[319273322,1710633039352,-502.5,0.00013738,2]
[319273323,1710633039362,-499.99,0.00013748,2]
[319273324,1710633039372,-8186.04863762,0.00013756,2]
[319273325,1710633039383,-218.87136238,0.00013756,2]
[319273326,1710633039392,-502.5,0.00013775,2]
[319273327,1710633039401,-502.5,0.00013812,2]
[319273328,1710633039410,-160.08,0.00013824,2]
[319273329,1710633039420,-434.56169582,0.00013849,2]
[319273331,1710633041534,-67.93830418,0.00013849,2]
[319273333,1710633041543,-502.5,0.00013886,2]
[319273335,1710633041552,-502.5,0.00013922,2]
[319273337,1710633041561,-502.5,0.00013959,2]
[319273339,1710633041571,-502.5,0.00013996,2]
[319273341,1710633041580,-502.5,0.00014033,2]
[319273343,1710633041589,-1029.50869994,0.00014037,2]
[319273345,1710633041601,-1359.22370126,0.00014051,2]
[319273347,1710633041610,-290.35,0.00014066,2]
[319273348,1710633041619,-160.08,0.00014066,2]
[319273350,1710633041627,-502.5,0.00014069,2]
[319273352,1710633041637,-172.11931491,0.00014103,2]
[319273354,1710633041645,-502.5,0.00014106,2]
[319273356,1710633041655,-185.32,0.00014223,2]
[319273358,1710633041664,-160.08,0.00014308,2]
[319273360,1710633041673,-178.24,0.000144,2]
[319273362,1710633041683,-260.44,0.000144,2]
[319273364,1710633041692,-210.0,0.00014461,2]
[319273366,1710633041701,-172.11931491,0.00014469,2]
[319273368,1710633041711,-250.0,0.000145,2]
[319273370,1710633041720,-300.0,0.000145,2]
[319273372,1710633041729,-150.0,0.000145,2]
[319273374,1710633041739,-150.0,0.000145,2]
[319273376,1710633041748,-260.44,0.00014537,2]
[319273378,1710633041757,-156.0,0.00014547,2]
[319273380,1710633041768,-153.0,0.00014547,2]
[319273383,1710633041778,-160.08,0.0001455,2]
[319273385,1710633041787,-156.0,0.00014575,2]
[319273386,1710633041796,-153.0,0.00014575,2]
[319273388,1710633041805,-176.39,0.000146,2]
[319273390,1710633041814,-153.0,0.00014602,2]
[319273392,1710633041823,-169.281994,0.00014649,2]
[319273394,1710633041832,-186.51279,0.00014649,2]
[319273396,1710633041841,-753.73,0.0001466,2]
[319273398,1710633041850,-520.64,0.00014674,2]
[319273400,1710633041860,-1201.0,0.00014697,2]
[319273402,1710633041869,-6447.48032485,0.000147,2]
[319273406,1710633041892,-291.72,0.000147,2]
[319273408,1710633041904,-2249.60857515,0.000147,2]
[319273410,1710633041913,-160.08,0.00014792,2]
[319273412,1710633041922,-169.281994,0.00014832,2]
[319273414,1710633041931,-172.11931491,0.00014834,2]
[319273416,1710633041940,-151.0,0.00014849,2]
[319273418,1710633041949,-151.0,0.00014876,2]
[319273420,1710633041957,-151.0,0.00014904,2]
[319273422,1710633041966,-77.11011594,0.00014931,2]
[319273424,1710633041978,-73.88988406,0.00014931,2]
[319273425,1710633041986,-356.32,0.00014948,2]
[319273426,1710633041995,-151.0,0.00014958,2]
[319273428,1710633042005,-246.27,0.00014963,2]
[319273430,1710633042014,-151.0,0.00014986,2]
[319273432,1710633042023,-213.40710979,0.00015,4]
[319273434,1710633042034,-2336.59289021,0.00015,4]
[319273436,1710633042043,-321.6642452,0.00015,2]
[319273438,1710633042052,-5469.26092734,0.00015,2]
[319273440,1710633042063,-4958.92713334,0.00015,2]
[319273442,1710633042072,-151.0,0.00015013,2]
[319273444,1710633042082,-169.281994,0.00015015,2]
[319273446,1710633042091,-151.0,0.00015041,2]
[319273448,1710633042101,-150.0,0.00015048,2]
[319273451,1710633042110,-151.0,0.00015068,2]
[319273454,1710633042120,-151.0,0.00015095,2]
[319273457,1710633042129,-151.0,0.00015123,2]
[319273460,1710633042138,-848.3467,0.00015145,2]
[319273463,1710633042147,-151.0,0.0001515,2]
[319273466,1710633042156,-151.0,0.00015178,2]
[319273469,1710633042164,-169.281994,0.00015199,2]
[319273472,1710633042174,-384.45676135,0.000152,2]
[319273475,1710633042184,-172.11931491,0.000152,2]
[319273477,1710633042193,-182.38652542,0.000152,2]
[319273478,1710633042202,-151.0,0.00015205,2]
[319273479,1710633042212,-384.45676126,0.00015218,2]
[319273480,1710633042222,-182.38652537,0.00015229,2]
[319273481,1710633042231,-137.57508508,0.0001523,2]
[319273482,1710633042242,-12.42491492,0.0001523,2]
[319273483,1710633042252,-163.0,0.00015232,2]
[319273484,1710633042261,-655.92920061,0.00015233,2]
[319273485,1710633042270,-655.9292006,0.00015233,2]
[319273486,1710633042279,-655.9292006,0.00015233,2]
[319273487,1710633042288,-655.9292006,0.00015233,2]
[319273488,1710633042297,-655.9292006,0.00015233,2]
[319273489,1710633042306,-655.9292006,0.00015233,2]
[319273490,1710633042316,-655.9292006,0.00015233,2]
[319273491,1710633042325,-655.9292006,0.00015233,2]
[319273492,1710633042334,-655.9292006,0.00015233,2]
[319273493,1710633042346,-384.45676126,0.00015236,2]
[319273494,1710633042355,-150.0,0.00015238,2]
[319273495,1710633042364,-2330.53938303,0.00015242,2]
[319273496,1710633042376,-1306.73281697,0.00015242,2]
[319273497,1710633042384,-7770.81584455,0.00015245,2]
[319273498,1710633042395,-8943.84023489,0.00015245,2]
[319273499,1710633042406,-359.73872996,0.00015245,2]
[319273500,1710633042418,-180.4282906,0.00015245,2]
[319273501,1710633042428,-150.0,0.00015247,2]
[319273502,1710633042437,-150.0,0.00015249,2]
[319273503,1710633042446,-150.0,0.00015249,2]
[319273505,1710633042457,-150.0,0.00015252,2]
[319273506,1710633042466,-150.0,0.00015253,2]
[319273508,1710633042475,-150.0,0.00015254,2]
[319273510,1710633042484,-73.0717094,0.00015255,2]
[319273512,1710633042499,-311.38505186,0.00015255,2]
[319273513,1710633042508,-182.38652537,0.00015257,2]
[319273515,1710633042517,-150.0,0.00015258,2]
[319273517,1710633042527,-150.0,0.00015259,2]
[319273518,1710633042538,-150.0,0.0001526,2]
[319273519,1710633042549,-150.0,0.00015263,2]
[319273520,1710633042560,-150.0,0.00015268,2]
[319273521,1710633042571,-150.0,0.00015272,2]
[319273522,1710633042581,-384.45676126,0.00015273,2]
[319273523,1710633042591,-150.0,0.0001528,2]
[319273524,1710633042603,-150.0,0.00015283,2]
[319273525,1710633042612,-182.38652537,0.00015286,2]
[319273526,1710633042621,-150.0,0.00015289,2]
[319273527,1710633042630,-276.60473665,0.0001529,2]
[319273528,1710633042640,-384.45676126,0.00015291,2]
[319273529,1710633042649,-150.0,0.00015291,2]
[319273530,1710633042659,-393.32363823,0.00015296,2]
[319273531,1710633042678,-106.67636177,0.00015296,2]
[319273532,1710633042687,-554.91155986,0.00015297,2]
[319273533,1710633042701,-657.64266,0.00015297,2]
[319273534,1710633042714,-6562.8,0.00015297,2]
[319273535,1710633042807,-2960.79185448,0.00015297,2]
[319273536,1710633042819,-2282.20613048,0.00015297,2]
[319273537,1710633042831,-13665.13439518,0.00015297,2]
[319273538,1710633042840,-4137.7156,0.00015298,2]
[319273539,1710633042854,-1000.0,0.00015299,2]
[319273540,1710633042863,-1000.0,0.00015299,2]
[319273541,1710633042873,-1000.0,0.00015299,2]
[319273542,1710633042882,-1000.0,0.00015299,2]
[319273543,1710633042891,-30574.97362438,0.000153,2]
[319273544,1710633042903,-2801.7142645,0.000153,2]
[319273545,1710633042915,-10457.39250472,0.000153,2]
[319273546,1710633042973,-994.28584224,0.000153,2]
[319273577,1710633046768,-65386.144,0.000153,2]
[319273578,1710633046781,-837.1292622,0.000153,2]
[319273579,1710633046825,-7134.59999999,0.000153,2]
[319273580,1710633046942,-214905.24473287,0.000153,2]
[319273581,1710633046957,-13198.3366805,0.000153,2]
[319273582,1710633046969,-1637.125,0.000153,2]
[319273583,1710633047006,-325.8801812,0.000153,2]
[319273584,1710633047062,-394.6502947,0.000153,2]
[319273588,1710633115863,150.0,6.94e-05,2]
[319273593,1710633348001,150.0,0.00011518,2]
[319273594,1710633348026,150.0,0.00011518,2]
[319273595,1710633348047,150.0,0.00011518,2]
[319273596,1710633348067,150.0,0.00011518,2]
[319273597,1710633348089,109.62,0.00011518,2]